[Event "GER-ch Youth U14 2019"]
[Site "Willingen"]
[Date "2019.06.12"]
[Round "6.15"]
[White "Haufe, Laurin"]
[Black "Wang, Xinyuan"]
[Result "1-0"]
[ECO "B06"]
[WhiteElo "1995"]
[BlackElo "2060"]
[Annotator "NA"]
[PlyCount "59"]
[EventDate "2019.06.07"]
[EventType "swiss"]
[EventRounds "9"]
[EventCountry "GER"]
[SourceTitle "playchess.com"]
[Source "ChessBase"]
[SourceQuality "1"]
[TimeControl "40/5400+30:1800+30"]

1. e4 {[%emt 0:00:00]} g6 {[%emt 0:00:03]} 2. d4 {[%emt 0:00:00]} Bg7 {[%emt 0:00:03]} 3. Nc3 {[%emt 0:00:01]} d6 {[%emt 0:00:06]} 4. f4 {[%emt 0:00:12]} e6 {[%emt 0:00:29]} 5. Nf3 {[%emt 0:00:19]} Ne7 {[%emt 0:00:10]} 6. Bd3 {[%emt 0:00:56]} Nd7 {[%emt 0:00:34]} 7. Be3 {[%emt 0:01:46]} O-O {[%emt 0:00:39]} 8. Qd2 {[%emt 0:01:04]} Nf6 {[%emt 0:01:56]} 9. h3 {[%emt 0:02:10]} a6 {[%emt 0:00:24]} 10. g4 {[%emt 0:02:57]} b5 {[%emt 0:01:12]} 11. Ne2 {[%emt 0:04:01]} Bb7 {[%emt 0:06:09]} 12. Ng3 {[%emt 0:00:54]} Rc8 {[%emt 0:03:25]} 13. g5 {[%emt 0:08:46]} Nd7 {[%emt 0:02:56]} 14. h4 {[%emt 0:05:38]} c5 {[%emt 0:01:14]} 15. c3 {[%emt 0:04:26]} Qa5 {[%emt 0:06:35]} 16. h5 {[%emt 0:17:27]} Rfd8 {[%emt 0:00:49]} 17. hxg6 {[%emt 0:00:43]} fxg6 {[%emt 0:00:26]} 18. Kf2 {[%emt 0:10:58]} cxd4 {[%emt 0:04:12]} 19. Nxd4 {[%emt 0:02:30]} Bxd4 {[%emt 0:02:47]} 20. cxd4 {[%emt 0:08:45]} Qxd2+ {[%emt 0:02:53]} 21. Bxd2 {[%emt 0:00:06]} e5 {[%emt 0:00:30]} 22. fxe5 {[%emt 0:01:16]} dxe5 {[%emt 0:02:14]} 23. d5 {[%emt 0:00:54]} Nc5 {[%emt 0:01:24]} 24. Be2 {[%emt 0:03:29]} Rf8+ {[%emt 0:03:59]} 25. Ke1 {[%emt 0:02:39]} Na4 {[%emt 0:03:55]} 26. Bb4 {[%emt 0:01:27]} Rf7 {[%emt 0:01:15]} 27. b3 {[%emt 0:02:01]} Nc3 {[%emt 0:01:29]} 28. Bg4 {[%emt 0:02:28]} Nxe4 {[%emt 0:09:50]} 29. Nxe4 {[%emt 0:06:31]} Rf4 {[%emt 0:00:45]} 30. Nf6+ {[%emt 0:01:27] normal} 1-0

[Event "GER-ch Youth U14 2019"]
[Site "Willingen"]
[Date "2019.06.12"]
[Round "6.16"]
[White "Schulemann, Gero"]
[Black "Kolmykov, Egor"]
[Result "1-0"]
[ECO "B28"]
[WhiteElo "1862"]
[BlackElo "1642"]
[Annotator "NA"]
[PlyCount "73"]
[EventDate "2019.06.07"]
[EventType "swiss"]
[EventRounds "9"]
[EventCountry "GER"]
[SourceTitle "playchess.com"]
[Source "ChessBase"]
[SourceQuality "1"]
[TimeControl "40/5400+30:1800+30"]

1. e4 {[%emt 0:00:00]} c5 {[%emt 0:00:00]} 2. Nf3 {[%emt 0:00:00]} a6 {[%emt 0:00:00]} 3. c3 {[%emt 0:00:00]} d5 {[%emt 0:00:00]} 4. exd5 {[%emt 0:00:35]} Nf6 {[%emt 0:02:08]} 5. d4 {[%emt 0:02:20]} Qxd5 {[%emt 0:00:12]} 6. Be3 {[%emt 0:00:35]} e6 {[%emt 0:03:09]} 7. Nbd2 {[%emt 0:05:54]} Be7 {[%emt 0:02:45]} 8. Nc4 {[%emt 0:02:22]} Nbd7 {[%emt 0:03:06]} 9. dxc5 {[%emt 0:11:57]} Bxc5 {[%emt 0:05:00]} 10. Be2 {[%emt 0:04:57]} O-O {[%emt 0:01:28]} 11. O-O {[%emt 0:01:02]} b5 {[%emt 0:05:56]} 12. Bxc5 {[%emt 0:04:13]} Qxc5 {[%emt 0:01:52]} 13. Ne3 {[%emt 0:00:52]} Bb7 {[%emt 0:01:17]} 14. a4 {[%emt 0:04:55]} b4 {[%emt 0:09:02]} 15. Qb3 {[%emt 0:13:11]} a5 {[%emt 0:04:53]} 16. cxb4 {[%emt 0:04:35]} axb4 {[%emt 0:00:41]} 17. Rfc1 {[%emt 0:01:25]} Qe7 {[%emt 0:00:43]} 18. Nd4 {[%emt 0:10:03]} Rac8 {[%emt 0:08:23]} 19. Ndc2 {[%emt 0:06:52]} Nd5 {[%emt 0:01:47]} 20. Nxd5 {[%emt 0:01:42]} exd5 {[%emt 0:00:46]} 21. Bb5 {[%emt 0:02:55]} Bc6 {[%emt 0:04:20]} 22. Bxc6 {[%emt 0:05:38]} Rxc6 {[%emt 0:01:02]} 23. Qxb4 {[%emt 0:01:22]} Qf6 {[%emt 0:00:55]} 24. Nd4 {[%emt 0:02:37]} Rxc1+ {[%emt 0:01:13]} 25. Rxc1 {[%emt 0:00:05]} Ne5 {[%emt 0:00:17]} 26. Qc3 {[%emt 0:01:44]} Qg6 {[%emt 0:01:25]} 27. h3 {[%emt 0:02:28]} f5 {[%emt 0:00:55]} 28. Nf3 {[%emt 0:01:40]} Nxf3+ {[%emt 0:00:40]} 29. Qxf3 {[%emt 0:00:04]} Rd8 {[%emt 0:00:06]} 30. Rd1 {[%emt 0:00:34]} d4 {[%emt 0:00:36]} 31. Rxd4 {[%emt 0:01:10]} Qf6 {[%emt 0:01:56]} 32. Rxd8+ {[%emt 0:00:12]} Qxd8 {[%emt 0:00:01]} 33. b4 {[%emt 0:01:32]} Qd4 {[%emt 0:00:24]} 34. Qb3+ {[%emt 0:00:17]} Kf8 {[%emt 0:00:22]} 35. Qb1 {[%emt 0:01:07]} g6 {[%emt 0:00:27]} 36. a5 {[%emt 0:00:12]} Qa7 {[%emt 0:00:32]} 37. Qa1 {[%emt 0:00:18] normal} 1-0

[Event "GER-ch Youth U14 2019"]
[Site "Willingen"]
[Date "2019.06.12"]
[Round "6.17"]
[White "Schauties, Nico Antonio"]
[Black "Seng, Alexander"]
[Result "1/2-1/2"]
[ECO "E93"]
[WhiteElo "1866"]
[BlackElo "1505"]
[Annotator "NA"]
[PlyCount "75"]
[EventDate "2019.06.07"]
[EventType "swiss"]
[EventRounds "9"]
[EventCountry "GER"]
[SourceTitle "playchess.com"]
[Source "ChessBase"]
[SourceQuality "1"]
[TimeControl "40/5400+30:1800+30"]

1. d4 {[%emt 0:00:00]} Nf6 {[%emt 0:00:00]} 2. Nf3 {[%emt 0:00:00]} g6 {[%emt 0:01:17]} 3. c4 {[%emt 0:00:00]} Bg7 {[%emt 0:00:06]} 4. Nc3 {[%emt 0:00:02]} d6 {[%emt 0:00:24]} 5. e4 {[%emt 0:00:28]} O-O {[%emt 0:00:31]} 6. Be2 {[%emt 0:00:07]} e5 {[%emt 0:03:38]} 7. d5 {[%emt 0:00:16]} Nbd7 {[%emt 0:01:58]} 8. h3 {[%emt 0:00:18]} Nc5 {[%emt 0:05:53]} 9. Qc2 {[%emt 0:00:10]} a5 {[%emt 0:00:12]} 10. g4 {[%emt 0:00:32]} Bd7 {[%emt 0:04:42]} 11. Be3 {[%emt 0:00:53]} Na6 {[%emt 0:04:50]} 12. a3 {[%emt 0:05:59]} c6 {[%emt 0:04:40]} 13. Na4 {[%emt 0:03:20]} c5 {[%emt 0:09:54]} 14. Nc3 {[%emt 0:02:04]} Nc7 {[%emt 0:02:08]} 15. Nd2 {[%emt 0:05:31]} Nfe8 {[%emt 0:04:32]} 16. f3 {[%emt 0:04:39]} Rb8 {[%emt 0:11:33]} 17. Nb5 {[%emt 0:00:43]} Nxb5 {[%emt 0:03:08]} 18. cxb5 {[%emt 0:00:31]} b6 {[%emt 0:02:34]} 19. a4 {[%emt 0:00:49]} g5 {[%emt 0:03:57]} 20. Nc4 {[%emt 0:03:11]} f6 {[%emt 0:01:39]} 21. O-O-O {[%emt 0:01:02]} h6 {[%emt 0:00:07]} 22. h4 {[%emt 0:00:18]} Qe7 {[%emt 0:02:36]} 23. Bf2 {[%emt 0:05:27]} Kf7 {[%emt 0:01:47]} 24. Ne3 {[%emt 0:00:48]} Nc7 {[%emt 0:03:25]} 25. Bc4 {[%emt 0:02:56]} Rh8 {[%emt 0:03:48]} 26. Rh2 {[%emt 0:01:28]} Rbf8 {[%emt 0:00:40]} 27. Rdh1 {[%emt 0:01:16]} Ke8 {[%emt 0:00:08]} 28. Be1 {[%emt 0:03:56]} Na8 {[%emt 0:01:49]} 29. Bc3 {[%emt 0:01:10]} Bc8 {[%emt 0:01:17]} 30. Qd2 {[%emt 0:03:16]} Qd8 {[%emt 0:00:38]} 31. Bd3 {[%emt 0:03:36]} Rf7 {[%emt 0:03:27]} 32. Nc4 {[%emt 0:02:43]} Ra7 {[%emt 0:01:25]} 33. Qg2 {[%emt 0:02:41]} Qe7 {[%emt 0:02:33]} 34. Qh3 {[%emt 0:01:39]} Kd8 {[%emt 0:01:17]} 35. hxg5 {[%emt 0:00:43]} fxg5 {[%emt 0:00:55]} 36. Qh5 {[%emt 0:01:12]} Qf6 {[%emt 0:01:16]} 37. Be2 {[%emt 0:01:20]} Re7 {[%emt 0:03:35]} 38. Bd2 {[%emt 0:17:21] normal} 1/2-1/2

[Event "GER-ch Youth U14 2019"]
[Site "Willingen"]
[Date "2019.06.12"]
[Round "6.18"]
[White "Weidenhoefer, Max"]
[Black "Sinnhoefer, Joshua"]
[Result "1/2-1/2"]
[ECO "B34"]
[WhiteElo "1787"]
[BlackElo "1466"]
[Annotator "NA"]
[PlyCount "60"]
[EventDate "2019.06.07"]
[EventType "swiss"]
[EventRounds "9"]
[EventCountry "GER"]
[SourceTitle "playchess.com"]
[Source "ChessBase"]
[SourceQuality "1"]
[TimeControl "40/5400+30:1800+30"]

1. e4 {[%emt 0:00:00]} c5 {[%emt 0:01:01]} 2. Nf3 {[%emt 0:00:00]} Nc6 {[%emt 0:00:04]} 3. d4 {[%emt 0:00:00]} cxd4 {[%emt 0:00:06]} 4. Nxd4 {[%emt 0:00:00]} Nf6 {[%emt 0:00:16]} 5. Nc3 {[%emt 0:00:02]} e5 {[%emt 0:00:27]} 6. Ndb5 {[%emt 0:00:07]} d6 {[%emt 0:01:27]} 7. Bg5 {[%emt 0:00:45]} Be7 {[%emt 0:00:39]} 8. Bxf6 {[%emt 0:00:45]} Bxf6 {[%emt 0:01:17]} 9. Nd5 {[%emt 0:00:07]} O-O {[%emt 0:00:31]} 10. Nxf6+ {[%emt 0:03:02]} Qxf6 {[%emt 0:01:38]} 11. Qxd6 {[%emt 0:04:33]} Qh4 {[%emt 0:03:49]} 12. Bd3 {[%emt 0:11:58]} Rd8 {[%emt 0:01:12]} 13. Qc5 {[%emt 0:06:02]} Qg5 {[%emt 0:02:42]} 14. Kf1 {[%emt 0:21:36]} Bd7 {[%emt 0:08:45]} 15. Qe3 {[%emt 0:11:26]} Qxe3 {[%emt 0:00:31]} 16. fxe3 {[%emt 0:00:07]} Nb4 {[%emt 0:00:11]} 17. Nc3 {[%emt 0:00:15]} Nxd3 {[%emt 0:01:24]} 18. cxd3 {[%emt 0:00:01]} Bg4 {[%emt 0:00:36]} 19. h3 {[%emt 0:00:31]} Bh5 {[%emt 0:00:09]} 20. g4 {[%emt 0:00:11]} Bg6 {[%emt 0:00:06]} 21. Ke2 {[%emt 0:00:15]} Rd6 {[%emt 0:00:37]} 22. Rhd1 {[%emt 0:01:12]} Rad8 {[%emt 0:00:15]} 23. Rd2 {[%emt 0:00:19]} f6 {[%emt 0:00:32]} 24. Rad1 {[%emt 0:00:59]} h5 {[%emt 0:02:50]} 25. Kf3 {[%emt 0:05:52]} h4 {[%emt 0:02:59]} 26. d4 {[%emt 0:05:24]} Kf7 {[%emt 0:01:16]} 27. d5 {[%emt 0:12:35]} a6 {[%emt 0:01:23]} 28. Rc1 {[%emt 0:02:02]} Rc8 {[%emt 0:00:32]} 29. Rdc2 {[%emt 0:00:38]} Ke7 {[%emt 0:00:51]} 30. Rd2 {[%emt 0:05:19]} Rc4 {[%emt 0:04:31] normal} 1/2-1/2

[Event "GER-ch Youth U14 2019"]
[Site "Willingen"]
[Date "2019.06.12"]
[Round "6.19"]
[White "Rockmann, Enno"]
[Black "Bress, Aaron"]
[Result "0-1"]
[ECO "B13"]
[WhiteElo "1527"]
[BlackElo "1849"]
[Annotator "NA"]
[PlyCount "107"]
[EventDate "2019.06.07"]
[EventType "swiss"]
[EventRounds "9"]
[EventCountry "GER"]
[SourceTitle "playchess.com"]
[Source "ChessBase"]
[SourceQuality "1"]
[TimeControl "40/5400+30:1800+30"]

1. e4 {[%emt 0:00:00]} c6 {[%emt 0:00:00]} 2. d4 {[%emt 0:00:00]} d5 {[%emt 0:00:00]} 3. exd5 {[%emt 0:00:00]} cxd5 {[%emt 0:00:03]} 4. c4 {[%emt 0:00:00]} Nf6 {[%emt 0:00:09]} 5. Nc3 {[%emt 0:00:00]} Nc6 {[%emt 0:00:17]} 6. cxd5 {[%emt 0:00:57]} Nxd5 {[%emt 0:02:39]} 7. Bc4 {[%emt 0:04:14]} Nb6 {[%emt 0:00:39]} 8. Bb5 {[%emt 0:00:04]} a6 {[%emt 0:00:11]} 9. Bxc6+ {[%emt 0:02:03]} bxc6 {[%emt 0:00:11]} 10. Nf3 {[%emt 0:00:28]} Bg4 {[%emt 0:00:58]} 11. O-O {[%emt 0:00:14]} e6 {[%emt 0:04:09]} 12. Qd3 {[%emt 0:04:02]} Bf5 {[%emt 0:10:06]} 13. Qe2 {[%emt 0:00:54]} Be7 {[%emt 0:01:35]} 14. Ne5 {[%emt 0:00:38]} Qc7 {[%emt 0:14:55]} 15. Bf4 {[%emt 0:02:36]} Bd6 {[%emt 0:03:07]} 16. Qf3 {[%emt 0:02:03]} O-O {[%emt 0:07:01]} 17. Ne2 {[%emt 0:02:44]} Nd5 {[%emt 0:02:45]} 18. Rac1 {[%emt 0:02:22]} Nxf4 {[%emt 0:04:56]} 19. Nxf4 {[%emt 0:00:08]} Bxe5 {[%emt 0:00:25]} 20. dxe5 {[%emt 0:00:51]} Qxe5 {[%emt 0:00:06]} 21. b3 {[%emt 0:02:45]} Rac8 {[%emt 0:18:47]} 22. Rfe1 {[%emt 0:01:06]} Qa5 {[%emt 0:02:44]} 23. Re2 {[%emt 0:01:28]} Rfd8 {[%emt 0:01:12]} 24. g4 {[%emt 0:01:01]} Bg6 {[%emt 0:02:16]} 25. Rxc6 {[%emt 0:00:20]} Rxc6 {[%emt 0:03:04]} 26. Qxc6 {[%emt 0:00:04]} Qg5 {[%emt 0:01:41]} 27. Rd2 {[%emt 0:08:04]} a5 {[%emt 0:14:29]} 28. Qb5 {[%emt 0:03:27]} Qxg4+ {[%emt 0:01:23]} 29. Kf1 {[%emt 0:00:08]} Rc8 {[%emt 0:00:56]} 30. Qc5 {[%emt 0:01:59]} e5 {[%emt 0:02:00]} 31. Qc7 {[%emt 0:01:26]} h6 {[%emt 0:01:17]} 32. Rd8+ {[%emt 0:00:06]} Rxd8 {[%emt 0:00:14]} 33. Qxd8+ {[%emt 0:00:04]} Kh7 {[%emt 0:00:13]} 34. Nxg6 {[%emt 0:00:37]} Qxg6 {[%emt 0:00:30]} 35. Qxa5 {[%emt 0:00:09]} Qd3+ {[%emt 0:00:33]} 36. Kg2 {[%emt 0:00:19]} Qe4+ {[%emt 0:00:23]} 37. Kf1 {[%emt 0:00:08]} Qh1+ {[%emt 0:00:24]} 38. Ke2 {[%emt 0:00:06]} Qxh2 {[%emt 0:00:14]} 39. Qd5 {[%emt 0:00:05]} Qf4 {[%emt 0:00:53]} 40. Qd3+ {[%emt 0:00:09]} e4 {[%emt 0:00:24]} 41. Qe3 {[%emt 0:30:17]} Qg4+ {[%emt 0:02:50]} 42. Kf1 {[%emt 0:00:00]} h5 {[%emt 0:04:14]} 43. Qg3 {[%emt 0:00:00]} Qf5 {[%emt 0:01:46]} 44. a4 {[%emt 0:00:00]} g5 {[%emt 0:00:58]} 45. b4 {[%emt 0:00:00]} h4 {[%emt 0:00:18]} 46. Qg2 {[%emt 0:00:00]} Qd5 {[%emt 0:09:36]} 47. Qg4 {[%emt 0:00:00]} Kh6 {[%emt 0:00:10]} 48. Qe2 {[%emt 0:00:00]} f5 {[%emt 0:12:42]} 49. a5 {[%emt 0:00:00]} Qd4 {[%emt 0:02:16]} 50. a6 {[%emt 0:00:00]} f4 {[%emt 0:01:01]} 51. Qa2 {[%emt 0:00:00]} Qd1+ {[%emt 0:01:01]} 52. Kg2 {[%emt 0:00:00]} Qd8 {[%emt 0:00:38]} 53. Qe6+ {[%emt 0:00:00]} Kh5 {[%emt 0:00:14]} 54. Qxe4 {[%emt 1:08:21] normal Kg6} 0-1

[Event "GER-ch Youth U14 2019"]
[Site "Willingen"]
[Date "2019.06.12"]
[Round "6.20"]
[White "Bornholdt, Joa Max"]
[Black "Wellssow, Keoki"]
[Result "1-0"]
[ECO "B06"]
[WhiteElo "1754"]
[BlackElo "1509"]
[Annotator "NA"]
[PlyCount "28"]
[EventDate "2019.06.07"]
[EventType "swiss"]
[EventRounds "9"]
[EventCountry "GER"]
[SourceTitle "playchess.com"]
[Source "ChessBase"]
[SourceQuality "1"]
[TimeControl "40/5400+30:1800+30"]

1. e4 {[%emt 0:00:00]} g6 {[%emt 0:00:00]} 2. d4 {[%emt 0:00:00]} Bg7 {[%emt 0:00:00]} 3. Nc3 {[%emt 0:00:00]} d6 {[%emt 0:00:27]} 4. f4 {[%emt 0:00:13]} a6 {[%emt 0:01:02]} 5. Nf3 {[%emt 0:00:05]} b5 {[%emt 0:00:51]} 6. Bd3 {[%emt 0:00:44]} Bb7 {[%emt 0:00:28]} 7. e5 {[%emt 0:03:00]} dxe5 {[%emt 0:03:32]} 8. fxe5 {[%emt 0:01:56]} Nd7 {[%emt 0:02:50]} 9. e6 {[%emt 0:08:33]} fxe6 {[%emt 0:02:58]} 10. Ng5 {[%emt 0:03:03]} Nf8 {[%emt 0:09:21]} 11. Qe2 {[%emt 0:20:00]} Nf6 {[%emt 0:01:35]} 12. Bf4 {[%emt 0:07:13]} Qxd4 {[%emt 0:04:36]} 13. Bg3 {[%emt 0:04:12]} Bxg2 {[%emt 0:05:44]} 14. Qxg2 {[%emt 0:06:55] normal} Qe3+ {[%emt 0:02:29] normal} 1-0

[Event "GER-ch Youth U14 2019"]
[Site "Willingen"]
[Date "2019.06.12"]
[Round "6.21"]
[White "Wildermuth, Nikolas Karl"]
[Black "Gutewort, Paul Emil"]
[Result "1/2-1/2"]
[ECO "A10"]
[WhiteElo "1748"]
[BlackElo "1708"]
[Annotator "NA"]
[PlyCount "41"]
[EventDate "2019.06.07"]
[EventType "swiss"]
[EventRounds "9"]
[EventCountry "GER"]
[SourceTitle "playchess.com"]
[Source "ChessBase"]
[SourceQuality "1"]
[TimeControl "40/5400+30:1800+30"]

1. c4 {[%emt 0:00:00]} g6 {[%emt 0:00:00]} 2. Nc3 {[%emt 0:00:00]} Bg7 {[%emt 0:00:00]} 3. d3 {[%emt 0:00:01]} c5 {[%emt 0:00:00]} 4. g3 {[%emt 0:00:07]} Nc6 {[%emt 0:00:00]} 5. Bg2 {[%emt 0:00:10]} e6 {[%emt 0:00:00]} 6. e4 {[%emt 0:00:24]} Nge7 {[%emt 0:00:05]} 7. Nge2 {[%emt 0:00:30]} O-O {[%emt 0:00:14]} 8. O-O {[%emt 0:00:02]} d6 {[%emt 0:00:13]} 9. f4 {[%emt 0:00:43]} a6 {[%emt 0:00:06]} 10. Be3 {[%emt 0:04:51]} Nd4 {[%emt 0:00:05]} 11. a4 {[%emt 0:01:44]} Rb8 {[%emt 0:00:23]} 12. Rb1 {[%emt 0:01:27]} Bd7 {[%emt 0:03:07]} 13. g4 {[%emt 0:03:21]} b5 {[%emt 0:02:44]} 14. axb5 {[%emt 0:01:21]} axb5 {[%emt 0:03:44]} 15. Ng3 {[%emt 0:01:40]} f5 {[%emt 0:01:57]} 16. g5 {[%emt 0:03:36]} Qc7 {[%emt 0:02:30]} 17. h4 {[%emt 0:04:22]} Bc6 {[%emt 0:07:18]} 18. h5 {[%emt 0:03:49]} Qd7 {[%emt 0:05:21]} 19. Nce2 {[%emt 0:05:50]} e5 {[%emt 0:23:07]} 20. Bh3 {[%emt 0:05:32]} Nxe2+ {[%emt 0:10:18]} 21. Qxe2 {[%emt 0:01:08] normal} 1/2-1/2

[Event "GER-ch Youth U14 2019"]
[Site "Willingen"]
[Date "2019.06.13"]
[Round "7.1"]
[White "Pubantz, Jan"]
[Black "Krastev, Alexander"]
[Result "0-1"]
[ECO "A56"]
[WhiteElo "2192"]
[BlackElo "2344"]
[Annotator "NA RC"]
[PlyCount "114"]
[EventDate "2019.06.07"]
[EventType "swiss"]
[EventRounds "9"]
[EventCountry "GER"]
[SourceTitle "playchess.com"]
[Source "ChessBase"]
[SourceQuality "1"]
[TimeControl "40/5400+30:1800+30"]

1. d4 {[%emt 0:00:00]} Nf6 {[%emt 0:00:00]} 2. c4 {[%emt 0:00:00]} c5 {[%emt 0:00:00]} 3. Nf3 {[%emt 0:00:00]} cxd4 {[%emt 0:00:00]} 4. Nxd4 {[%emt 0:00:00]} e5 {[%emt 0:00:00]} 5. Nb5 {[%emt 0:00:33]} d5 {[%emt 0:00:00]} 6. cxd5 {[%emt 0:00:06]} Bb4+ {[%emt 0:00:00]} 7. N1c3 {[%emt 0:27:02]} O-O {[%emt 0:00:14]} 8. a3 {[%emt 0:07:11]} Ba5 {[%emt 0:00:10]} 9. b4 {[%emt 0:01:39]} Bb6 {[%emt 0:00:06]} 10. a4 {[%emt 0:02:40]} a6 {[%emt 0:03:00]} 11. Na3 {[%emt 0:03:22]} Bd4 {[%emt 0:04:00]} 12. Bd2 {[%emt 0:17:34]} Nxd5 {[%emt 0:04:52]} 13. Qb3 {[%emt 0:03:12]} Be6 {[%emt 0:03:47]} 14. Qb2 {[%emt 0:05:38]} e4 {[%emt 0:15:44]} 15. e3 {[%emt 0:00:30]} Bf6 {[%emt 0:00:27]} 16. Rc1 {[%emt 0:08:37]} Nc6 {[%emt 0:05:58]} 17. Qb1 {[%emt 0:01:58]} Nxc3 {[%emt 0:03:53]} 18. Bxc3 {[%emt 0:00:07]} Bxc3+ {[%emt 0:00:07]} 19. Rxc3 {[%emt 0:00:05]} Qf6 {[%emt 0:00:14]} 20. Rc5 {[%emt 0:03:45]} Rac8 {[%emt 0:07:13]} 21. Be2 {[%emt 0:05:16]} b6 {[%emt 0:11:54]} 22. Rc1 {[%emt 0:04:37]} Ne5 {[%emt 0:04:18]} 23. O-O {[%emt 0:01:58]} Nf3+ {[%emt 0:00:44]} 24. Bxf3 {[%emt 0:02:46]} exf3 {[%emt 0:00:06]} 25. Rxc8 {[%emt 0:00:53]} Bxc8 {[%emt 0:04:25]} 26. Qe4 {[%emt 0:01:00]} fxg2 {[%emt 0:00:45]} 27. Rd1 {[%emt 0:02:02]} h5 {[%emt 0:04:54]} 28. Rd4 {[%emt 0:00:36]} Be6 {[%emt 0:02:43]} 29. Nc4 {[%emt 0:00:45]} Rc8 {[%emt 0:00:42]} 30. Kxg2 {[%emt 0:00:34]} Qg5+ {[%emt 0:11:08]} 31. Kf1 {[%emt 0:00:07]} Bh3+ {[%emt 0:00:21]} 32. Ke2 {[%emt 0:00:11]} Qg1 {[%emt 0:00:06]} 33. Nd2 {[%emt 0:01:06]} Bg4+ {[%emt 0:03:09]} 34. f3 {[%emt 0:00:21]} Qxh2+ {[%emt 0:00:14]} 35. Kd3 {[%emt 0:00:11]} Be6 {[%emt 0:00:14]} 36. Qf4 {[%emt 0:00:58]} Qxf4 {[%emt 0:04:52]} 37. Rxf4 {[%emt 0:00:05]} g5 {[%emt 0:03:58]} 38. Rd4 {[%emt 0:00:08]} h4 {[%emt 0:00:23]} 39. Ke2 {[%emt 0:01:24]} Rc2 {[%emt 0:01:51]} 40. Rd8+ {[%emt 0:00:31]} Kg7 {[%emt 0:00:17]} 41. Kf2 {[%emt 0:17:09]} Ra2 {[%emt 0:04:13]} 42. Rd6 {[%emt 0:01:04]} Kf8 {[%emt 0:02:44]} 43. b5 {[%emt 0:01:30]} Ke7 {[%emt 0:02:07]} 44. Rd4 {[%emt 0:00:13]} axb5 {[%emt 0:00:25]} 45. axb5 {[%emt 0:00:06]} Rb2 {[%emt 0:00:05]} 46. f4 {[%emt 0:04:58]} f6 {[%emt 0:06:41]} 47. Kg1 {[%emt 0:02:49]} Rxb5 {[%emt 0:00:54]} 48. e4 {[%emt 0:01:00]} gxf4 {[%emt 0:01:18]} 49. Nf3 {[%emt 0:00:41]} h3 {[%emt 0:01:18]} 50. Ra4 {[%emt 0:02:28]} Rb1+ {[%emt 0:01:37]} 51. Kh2 {[%emt 0:00:17]} Rb2+ {[%emt 0:01:12]} 52. Kg1 {[%emt 0:01:30]} Bg4 {[%emt 0:01:14]} 53. Nh2 {[%emt 0:00:31]} Bh5 {[%emt 0:02:55]} 54. Ra7+ {[%emt 0:01:43]} Ke6 {[%emt 0:00:15]} 55. Rh7 {[%emt 0:00:07]} Rg2+ {[%emt 0:00:31]} 56. Kh1 {[%emt 0:00:11]} Bg6 {[%emt 0:00:56] normal} 57. Nf3 {[%emt 0:00:41]} Bxh7 {[%emt 0:00:47] normal} 0-1

[Event "GER-ch Youth U14 2019"]
[Site "Willingen"]
[Date "2019.06.13"]
[Round "7.2"]
[White "Bethke, Richard"]
[Black "Colbow, Collin"]
[Result "1-0"]
[ECO "B63"]
[WhiteElo "2246"]
[BlackElo "2169"]
[Annotator "NA"]
[PlyCount "83"]
[EventDate "2019.06.07"]
[EventType "swiss"]
[EventRounds "9"]
[EventCountry "GER"]
[SourceTitle "playchess.com"]
[Source "ChessBase"]
[SourceQuality "1"]
[TimeControl "40/5400+30:1800+30"]

1. e4 {[%emt 0:00:00]} c5 {[%emt 0:00:00]} 2. Nf3 {[%emt 0:00:07]} d6 {[%emt 0:00:00]} 3. d4 {[%emt 0:00:06]} cxd4 {[%emt 0:00:00]} 4. Nxd4 {[%emt 0:00:08]} Nf6 {[%emt 0:00:00]} 5. Nc3 {[%emt 0:00:09]} Nc6 {[%emt 0:01:05]} 6. Bg5 {[%emt 0:04:41]} e6 {[%emt 0:00:27]} 7. Qd2 {[%emt 0:00:51]} Qb6 {[%emt 0:00:29]} 8. Nb3 {[%emt 0:09:45]} a6 {[%emt 0:04:12]} 9. f4 {[%emt 0:01:27]} Qc7 {[%emt 0:04:44]} 10. O-O-O {[%emt 0:01:19]} b5 {[%emt 0:01:26]} 11. a3 {[%emt 0:08:30]} Rb8 {[%emt 0:01:32]} 12. Kb1 {[%emt 0:06:25]} b4 {[%emt 0:01:10]} 13. axb4 {[%emt 0:00:25]} Rxb4 {[%emt 0:01:17]} 14. Bxf6 {[%emt 0:04:57]} gxf6 {[%emt 0:00:21]} 15. f5 {[%emt 0:00:56]} h5 {[%emt 0:07:48]} 16. fxe6 {[%emt 0:01:28]} fxe6 {[%emt 0:00:48]} 17. g3 {[%emt 0:00:25]} Be7 {[%emt 0:14:07]} 18. Bh3 {[%emt 0:02:03]} a5 {[%emt 0:02:30]} 19. Na2 {[%emt 0:10:15]} Rxe4 {[%emt 0:05:33]} 20. Bg2 {[%emt 0:05:34]} Ra4 {[%emt 0:09:46]} 21. Nc3 {[%emt 0:04:18]} Rb4 {[%emt 0:00:19]} 22. Qd3 {[%emt 0:07:24]} Ne5 {[%emt 0:09:21]} 23. Nb5 {[%emt 0:01:03]} Qb6 {[%emt 0:03:05]} 24. Nxd6+ {[%emt 0:00:24]} Bxd6 {[%emt 0:00:16]} 25. Qxd6 {[%emt 0:00:55]} Qxd6 {[%emt 0:02:20]} 26. Rxd6 {[%emt 0:00:08]} Ke7 {[%emt 0:08:38]} 27. Rhd1 {[%emt 0:02:21]} a4 {[%emt 0:03:16]} 28. Na5 {[%emt 0:09:05]} f5 {[%emt 0:04:03]} 29. Ka2 {[%emt 0:08:50]} Rb5 {[%emt 0:02:14]} 30. Nc6+ {[%emt 0:00:33]} Nxc6 {[%emt 0:01:10]} 31. Rxc6 {[%emt 0:00:10]} h4 {[%emt 0:02:49]} 32. Rd4 {[%emt 0:01:49]} hxg3 {[%emt 0:00:33]} 33. hxg3 {[%emt 0:00:13]} Kf6 {[%emt 0:01:26]} 34. Rc7 {[%emt 0:01:40]} Rg8 {[%emt 0:04:13]} 35. Bf1 {[%emt 0:03:11]} Ra5 {[%emt 0:00:34]} 36. Rd6 {[%emt 0:01:56]} Ra8 {[%emt 0:01:35]} 37. Bg2 {[%emt 0:00:55]} Ra5 {[%emt 0:00:52]} 38. Rc3 {[%emt 0:02:15]} Ba6 {[%emt 0:02:32]} 39. Rcc6 {[%emt 0:00:50]} Bc8 {[%emt 0:00:09]} 40. Bf1 {[%emt 0:01:40]} Re5 {[%emt 0:02:11]} 41. Bc4 {[%emt 0:02:59]} Re3 {[%emt 0:03:05]} 42. Rc7 {[%emt 0:01:10] normal} 1-0